Cogmind - Beta 16 @@@ ROGUE MODE // 2026.01.01 @ 22:39:59 Player: Xcalibur Result: Destroyed by S-27 Virus with Autogun Performance ------------- Evolutions (5) 2500 Regions Visited (9) 1800 Robots Destroyed (63) 315 Value Destroyed (1906) 1906 Prototype IDs (29) 580 Alien Tech Used (2) 400 Bonus (1100) 1100 TOTAL SCORE: 8601 Bonus ------- Registered with UFD 300 Met Optimus in HQ 500 Met Zhirov 300 Cogmind --------- Core Integrity 0/1000 Matter 87/300 Energy 36/100 System Corruption 6% Temperature Cool (0) Movement Core (50) Location -4/Proximity Caves Parts ------- > --- POWER (1) -------- (None) > --- PROPULSION (4) --- (None) > --- UTILITY (9) ------ Advanced ECM Suite Advanced System Shield > --- WEAPON (3) ------- (None) > --- INVENTORY (5) ---- Makeshift Sensor Array Particle Accelerator Improved Remote Shield Autogun Multitool Peak State ------------ > --- POWER ------------ Light Nuclear Core > --- PROPULSION ------- Light Treads Light Treads Compact Wheel Armored Wheel > --- UTILITY ---------- Scrap Suit Huge Storage Unit Machine Analyzer Improved Transmission Jammer Hardened Medium Armor Plating Improved Medium Armor Plating Makeshift Light Armor Plating System Restoration Module > --- WEAPON ----------- Long-range Proton Cannon Battle Rifle KE Penetrator > --- INVENTORY -------- Advanced Heat Sink Advanced Heat Sink Disposable Heat Sink Experimental Sensor Array Transmission Jammer Mini Drone Bay Shock Rifle Subdweller Laser Gatling Laser Long-range Proton Cannon Long-range Proton Cannon Plasma Cannon Gauss Rifle Gauss Rifle Gauss Rifle KE Penetrator Gauss Cannon Subdweller Shrapnel Launcher Subdweller Shrapnel Launcher Missile Launcher Improved Datajack CPS Tube Multitool Vortex Trap [Rating: 64] Favorites ----------- Power Light Nuclear Core Engine Light Ion Engine Power Core Light Nuclear Core Propulsion Light Treads Treads Light Treads Wheel Armored Wheel Hover Unit Antigrav System Flight Unit VTOL Module Utility Huge Storage Unit Device Seismic Detector Storage Huge Storage Unit Processor Machine Analyzer Hackware Advanced System Shield Protection Makeshift Light Armor Plating Weapon Riot Gun Energy Gun Riot Gun Energy Cannon Plasma Cannon Ballistic Gun Battle Rifle Ballistic Cannon Mass Driver Launcher Subdweller Shrapnel Launcher Special Weapon Multitool Impact Weapon Hammer Special Melee Weapon Improved Datajack Build | -11 -10 -10 -7 -7 -5 -5 -5 -5 -4 ------- Run | Yrd Mat Sub Rec Scr Fac Upp Upp Zhi Pro Slots Evolved 10 | . . . . . 10 . . . . Power . | . . . . . . . . . . Propulsion 2 | . . . . . 2 . . . . Utility 7 | . . . . . 7 . . . . Weapon 1 | . . . . . 1 . . . . Parts Attached 82 | 7 11 21 4 3 18 3 3 8 4 Power 9 | 1 2 3 . 1 1 . . 1 . Engine 5 | 1 2 2 . . . . . . . Core 4 | . . 1 . 1 1 . . 1 . Reactor . | . . . . . . . . . . Propulsion 21 | 2 3 6 2 1 3 . 1 2 1 Treads 9 | 1 1 3 1 . 3 . . . . Leg . | . . . . . . . . . . Wheel 8 | 1 2 3 1 1 . . . . . Hover 3 | . . . . . . . 1 2 . Flight 1 | . . . . . . . . . 1 Utility 28 | 2 5 4 . . 9 1 2 4 1 Device 15 | 1 . 3 . . 6 1 2 1 1 Storage 5 | 1 4 . . . . . . . . Processor 2 | . . . . . 1 . . 1 . Hackware 1 | . . . . . . . . 1 . Protection 5 | . 1 1 . . 2 . . 1 . Artifact . | . . . . . . . . . . Weapon 24 | 2 1 8 2 1 5 2 . 1 2 Energy Gun 11 | 2 . 6 1 . 2 . . . . Energy Cannon 1 | . . . . . 1 . . . . Ballistic Gun 4 | . . . 1 . 1 . . . 2 Ballistic Cannon 1 | . . . . . . 1 . . . Launcher 3 | . 1 1 . . . 1 . . . Special Weapon 2 | . . . . . 1 . . 1 . Impact Weapon 1 | . . 1 . . . . . . . Slashing Weapon . | . . . . . . . . . . Piercing Weapon . | . . . . . . . . . . Special Melee Weapon 1 | . . . . 1 . . . . . Unidentified Prototypes 4 | . . . . . . . . 4 . Parts Lost 42 | . 1 8 . . 10 11 3 . 9 Power 6 | . 1 2 . . 1 1 . . 1 Propulsion 12 | . . 2 . . 4 2 1 . 3 Utility 13 | . . 1 . . 2 5 2 . 3 Weapon 11 | . . 3 . . 3 3 . . 2 Highest Loss Streak 7 | . 1 4 . . 3 6 2 . 7 To Critical Strikes 1 | . . . . . . 1 . . . Average Backups 19 | 3 13 24 24 23 17 16 3 4 4 Power 1 | . 1 2 2 1 . . . . . Propulsion 3 | 1 5 7 5 4 1 . . . . Utility 4 | . . 4 6 5 3 4 . 1 1 Weapon 8 | . 5 9 8 9 10 9 1 1 . Tool/Special . | . . . . . . . . . . Unused Backups 36 | . 5 6 3 10 3 7 1 . 1 Power 7 | . 2 2 . 3 . . . . . Propulsion 3 | . 1 1 . 1 . . . . . Utility 9 | . 1 . . 4 . 2 1 . 1 Weapon 16 | . . 3 3 2 3 5 . . . Tool/Special 1 | . 1 . . . . . . . . Average Slot Usage (%) 87 | . 93 99 100 100 90 57 6 12 34 Engine 2 | . 13 7 . . . . . . . Core 7 | . . 6 14 14 5 . . . . Treads 12 | . 14 14 16 14 14 4 . . . Wheel 9 | . 14 13 11 14 5 . . . . Device 7 | . 8 10 . . 18 24 4 . 2 Storage 11 | . 14 14 14 14 5 4 . . . Processor 1 | . . . . . 4 4 . . 5 Protection 8 | . . 3 14 14 14 4 . 2 3 Energy Gun 14 | . 27 24 16 14 8 4 . . . Ballistic Gun 5 | . . . 11 11 5 . . . 3 Peak Build Rating 64 | 8 9 20 21 24 64 52 10 37 40 Average Rating 24 | 5 7 13 20 21 51 42 4 12 29 On Entrance 16 | . 8 9 20 20 23 52 2 . 30 Avg Prop Armor Cover (%) 11 | 16 13 13 10 9 10 . 26 33 18 Naked Turns 166 | . . . . . . 92 7 67 . Heaviest Build 126 | 12 89 101 96 95 126 120 2 10 14 Greatest Support 40 | 20 16 20 40 16 28 20 11 22 22 Greatest Overweight (x) 34 | . 8 9 5 7 10 34 . 3 . Average Overweight (x) 4 | . 4 5 4 6 8 2 . . . Largest Inventory Capacity 25 | 8 25 25 25 25 25 25 5 5 5 Average Capacity 23 | 6 22 25 25 25 25 23 5 5 5 Most Carried 25 | 8 25 25 25 25 25 21 5 5 5 Average Carried 20 | 3 13 24 24 24 18 17 4 4 4 Final Capacity 25 | 8 25 25 25 25 25 5 5 5 5 Final Carried 25 | 8 25 25 25 25 20 5 4 5 5 Scrap Suit Usage (%) 7 | . . . . . 93 . . . . Parts Cannibalized 9 | . . . . . 9 . . . . Class Distribution -------------------- 85% | Mutant 6% | Scavenger-Mutant 4% | Scavenger-Tank 3% | Derelict-Tank Dominant Class ---------------- Mutant | -10/Materials Mutant | -10/Subcaves Mutant | -7/Recycling Mutant | -7/Scraptown Scavenger-Tank | -5/Factory Mutant | -5/Upper Caves Mutant | -5/Upper Caves Mutant | -5/Zhirov Scavenger-Mutant | -4/Proximity Caves Resources | -11 -10 -10 -7 -7 -5 -5 -5 -5 -4 ----------- Run | Yrd Mat Sub Rec Scr Fac Upp Upp Zhi Pro Matter Collected 2391 | 261 169 591 208 60 500 240 79 60 223 Remotely . | . . . . . . . . . . Salvage Created 2761 | 78 571 533 251 262 625 273 60 60 48 Parts 138 | 5 30 29 13 11 30 8 . 8 4 Haulers Intercepted 1 | . 1 . . . . . . . . Recyclers Shooed 4 | . 1 . 2 . 1 . . . . Parts Field Recycled . | . . . . . . . . . . Retrieved Matter . | . . . . . . . . . . Parts Self-Destructed 30 | . . 3 . 9 . 8 6 4 . Prevented 1 | . . 1 . . . . . . . Parts Restored . | . . . . . . . . . . Kills | -11 -10 -10 -7 -7 -5 -5 -5 -5 -4 ------- Run | Yrd Mat Sub Rec Scr Fac Upp Upp Zhi Pro Combat Hostiles Destroyed 49 | . 13 14 . . 12 5 . . 5 Guns 28 | . 10 9 . . 6 2 . . 1 Cannons 1 | . . . . . . 1 . . . AOE 15 | . 3 4 . . 3 1 . . 4 Classes Destroyed 17 | 2 6 5 . . 2 1 1 . . Worker 1 | . 1 . . . . . . . . Builder 2 | . 1 . 1 . . . . . . Tunneler 2 | 1 . . . . 1 . . . . Hauler 1 | . 1 . . . . . . . . Recycler 5 | 1 1 . 3 . . . . . . Turret 2 | . . 2 . . . . . . . Watcher 1 | . 1 . . . . . . . . Swarmer 20 | . 6 4 . . 4 1 . . 5 Grunt 12 | . 7 . . . 2 3 . . . Brawler 1 | . . . . . . 1 . . . Sentry 3 | . . 1 . . 2 . . . . Hunter 2 | . . . . . 2 . . . . Programmer 2 | . . . . . 2 . . . . Artisan 1 | . . 1 . . . . . . . Cobbler 1 | . . 1 . . . . . . . Subdweller 9 | . . 9 . . . . . . . Decomposer 2 | . . . . . . 2 . . . Samaritan 1 | . . . . . . . 1 . . Best Kill Streak 4 | 2 4 4 1 . 3 4 . . 4 Combat Bots Only 4 | . 4 4 . . 3 4 . . 4 Max Kills in Single Turn 4 | 1 4 2 1 . 3 1 1 . 2 Gunslinging . | . . . . . . . . . . Exploded 3 | . 3 2 . . 3 1 . . 2 Melee . | . . . . . . . . . . Uniques/NPCs Destroyed . | . . . . . . . . . . Combat | -11 -10 -10 -7 -7 -5 -5 -5 -5 -4 -------- Run | Yrd Mat Sub Rec Scr Fac Upp Upp Zhi Pro Hostile Shots Fired 469 | . 38 77 . . 134 107 31 . 82 Missed 157 | . 6 24 . . 36 34 15 . 42 Hits 312 | . 32 53 . . 98 73 16 . 40 Melee 3 | . . . . . . 3 . . . Projectile 309 | . 32 53 . . 98 70 16 . 40 Critical Strikes 16 | . 1 4 . . 3 3 1 . 4 Actively Blocked 1 | . . . . . . . . . 1 Damage Taken 5783 | . 341 999 . . 1907 1553 334 . 649 Core 1193 | . 28 186 . . 36 412 250 . 281 Absorbed by Shields . | . . . . . . . . . . Redirected to Shielding 156 | . . . . . . . . . 156 Regen/Repaired (Parts) 89 | . 30 . . . 59 . . . . Core Remaining (%) 57 | 100 . . . 14 . . . . . Volleys Fired 231 | 5 47 43 26 10 47 20 . 22 11 Largest 3 | 2 2 2 2 1 3 3 . 1 2 Hottest 173 | 90 90 110 100 25 173 173 . 30 47 Shots Fired 399 | 10 91 75 29 10 109 41 . 22 12 Gun 336 | 10 89 67 29 10 100 24 . . 7 Cannon 22 | . . . . . 8 14 . . . Launcher 19 | . 2 8 . . 1 3 . . 5 Special 22 | . . . . . . . . 22 . Kinetic 115 | . . 8 23 10 43 19 . . 12 Thermal 233 | 10 89 49 . . 42 22 . 21 . Explosive 2 | . 2 . . . . . . . . Electromagnetic 48 | . . 18 6 . 24 . . . . Robot Hit Streak 16 | 4 9 16 8 15 15 11 . 8 6 Robot Miss Streak 7 | 1 3 2 2 . 6 3 . 2 7 Penetration Max . | . . . . . . . . . . Secondary Targets 1 | . 1 . . . . . . . . Max Gunslinging Chain 1 | . 1 . . . . . . . . Shots Hit Robots 293 | 7 64 65 21 14 70 25 . 17 10 Core Hits 130 | 3 30 30 8 5 28 13 . 6 7 Critical Kills 4 | . . 1 1 . 1 1 . . . Critical Parts Destroyed 2 | . . 2 . . . . . . . Critical Strikes 13 | 1 2 7 1 . 1 1 . . . Burn 6 | 1 2 3 . . . . . . . Meltdown 1 | . . . . . 1 . . . . Destroy 3 | . . 1 1 . . 1 . . . Corrupt 1 | . . 1 . . . . . . . Smash 2 | . . 2 . . . . . . . Melee Attacks 29 | . . 25 . 4 . . . . . Impact 25 | . . 25 . . . . . . . Slashing . | . . . . . . . . . . Piercing . | . . . . . . . . . . Sneak Attacks 5 | . . 2 . 3 . . . . . Combat Hostiles . | . . . . . . . . . . Follow-up Attacks . | . . . . . . . . . . Damage Inflicted 6079 | 87 960 1328 307 147 1727 845 12 73 593 Guns 3846 | 87 828 749 307 147 1325 324 . . 79 Cannons 461 | . . . . . 176 285 . . . Explosions 1491 | . 132 383 . . 226 236 . . 514 Melee 196 | . . 196 . . . . . . . Ramming 13 | . . . . . . . 12 1 . Kinetic 2619 | . . 383 236 147 749 511 . . 593 Thermal 2558 | 87 828 589 . . 648 334 . 72 . Explosive 132 | . 132 . . . . . . . . Electromagnetic 561 | . . 160 71 . 330 . . . . Impact 196 | . . 196 . . . . . . . Slashing . | . . . . . . . . . . Piercing . | . . . . . . . . . . Highest Corruption 6 | . . . . . 5 4 4 4 6 Average Corruption 3 | . . . . . 2 4 4 4 6 Corruption Purged 5 | . . . . . 5 . . . . Corruption Blocked . | . . . . . . . . . . Effects 46 | . . . . . 2 37 3 4 . Message Errors 15 | . . . . . 1 11 1 2 . Matter Fused 12 | . . . . . 1 10 1 . . Heat Flow Errors 3 | . . . . . . 3 . . . Energy Discharges 4 | . . . . . . 3 . 1 . Parts Rejected 1 | . . . . . . . 1 . . Parts Fused 1 | . . . . . . 1 . . . Data Loss (minor) 7 | . . . . . . 7 . . . Data Loss (major) 2 | . . . . . . 1 . 1 . Misfires 1 | . . . . . . 1 . . . Overload Shots . | . . . . . . . . . . Overflow Damage 78 | . 12 56 . . . . 10 . . Projectiles . | . . . . . . . . . . Explosions 30 | . 12 18 . . . . . . . Melee 48 | . . 38 . . . . 10 . . Knockbacks 3 | . . 1 . . . 2 . . . Impact 1 | . . 1 . . . . . . . Kinetic 2 | . . . . . . 2 . . . Secondary . | . . . . . . . . . . Self-Inflicted Damage 176 | . 11 74 . . 46 23 6 . 16 Shots 7 | . 1 2 . . 2 1 . . 1 Rammed 3 | . . . . . . . 2 1 . Targets Rammed 3 | . . . . . . . 2 1 . Kicked . | . . . . . . . . . . Crushed . | . . . . . . . . . . Highest Temperature 301 | 120 258 262 128 24 301 184 . . 1 Average Temperature 80 | 54 82 122 31 14 90 101 . . 1 Received Heat Transfer 1425 | . 144 482 . . 165 513 72 . 49 Siege Activations . | . . . . . . . . . . Martial Activations . | . . . . . . . . . . Shielding Activations . | . . . . . . . . . . Robots Disrupted . | . . . . . . . . . . Combat Hostiles . | . . . . . . . . . . Robots Corrupted 5 | . . 2 . . 2 . 1 . . Combat Hostiles 3 | . . 1 . . 2 . . . . Parts Fried 11 | . . 4 . . 6 . 1 . . Impact Corruptions 4 | . . 3 . . . . 1 . . Robots Melted 2 | . . . . . 1 1 . . . Combat Hostiles 2 | . . . . . 1 1 . . . Parts Melted 5 | . 3 1 . . 1 . . . . Heat Transferred 5931 | 297 2256 1403 . . 1075 475 . 425 . Parts Sabotaged . | . . . . . . . . . . Parts Stolen . | . . . . . . . . . . Parts Stripped . | . . . . . . . . . . Power Chain Reactions 1 | . . . . . 1 . . . . Alert | -11 -10 -10 -7 -7 -5 -5 -5 -5 -4 ------- Run | Yrd Mat Sub Rec Scr Fac Upp Upp Zhi Pro Maximum Alert Level . | . . . . . . . . . . Low Security (%) 100 | 100 100 . 100 . 100 . . . . Level 1 . | . . . . . . . . . . Level 2 . | . . . . . . . . . . Level 3 . | . . . . . . . . . . Level 4 . | . . . . . . . . . . Level 5 . | . . . . . . . . . . High Security . | . . . . . . . . . . Max Security . | . . . . . . . . . . Peak Influence 139 | 10 139 . 134 . 130 . . . . Initial 103 | . . . 103 . . . . . . Average 45 | 1 30 . 66 . 47 . . . . Influence Increases 1969 | 10 409 275 308 20 452 230 90 5 170 Destroy 0b10 Robot/C 840 | . 260 140 . . 240 100 . . 100 Destroy 0b10 Robot/NC 85 | 10 25 . 20 20 5 . . 5 . Destroy Leader 134 | . 54 . . . 60 10 . . 10 Successful Hack 103 | . 14 . 78 . 11 . . . . Select Force Hacks 210 | . . . 210 . . . . . . Disable Machine 30 | . . . . . 30 . . . . Destroy Structure 57 | . 11 . . . 46 . . . . Lose Combat Pursuer 510 | . 45 135 . . 60 120 90 . 60 Influence Decreases 1919 | 10 294 173 507 38 387 196 149 45 120 Entered New Map 272 | . . 56 114 18 . 25 19 40 . Time Decay 1357 | 10 284 78 393 20 316 101 100 5 50 Lost Part 270 | . 10 39 . . 71 50 30 . 70 Lost Ally 20 | . . . . . . 20 . . . Squads Dispatched 5 | . 2 . . . 3 . . . . Investigation 2 | . 1 . . . 1 . . . . Extermination 1 | . . . . . 1 . . . . Reinforcement 2 | . 1 . . . 1 . . . . Assault . | . . . . . . . . . . Garrison . | . . . . . . . . . . Intercept . | . . . . . . . . . . Searches Triggered . | . . . . . . . . . . Construction Impeded 1 | . . . . . 1 . . . . Haulers Reinforced . | . . . . . . . . . . Active Scanning Responses . | . . . . . . . . . . Cargo Convoy Interrupts . | . . . . . . . . . . Stealth | -11 -10 -10 -7 -7 -5 -5 -5 -5 -4 --------- Run | Yrd Mat Sub Rec Scr Fac Upp Upp Zhi Pro Distress Signals 2 | . 2 . . . . . . . . Communications Jammed . | . . . . . . . . . . Distress Signals . | . . . . . . . . . . Times Spotted 100 | . 18 20 . . 17 14 12 . 19 Peak Tracking Total 10 | . 4 4 . . 4 7 8 . 10 Tactical Retreats 20 | . 3 3 . . 2 5 5 . 2 Traps | -11 -10 -10 -7 -7 -5 -5 -5 -5 -4 ------- Run | Yrd Mat Sub Rec Scr Fac Upp Upp Zhi Pro Traps Triggered 2 | . 1 1 . . . . . . . Indirectly . | . . . . . . . . . . Trap Hack Attempts . | . . . . . . . . . . Triggered . | . . . . . . . . . . Disarmed . | . . . . . . . . . . Reprogrammed . | . . . . . . . . . . Reused 1 | . . . . . . . 1 . . Traps Extracted . | . . . . . . . . . . Installed 1 | . . . . . . . 1 . . Triggered 1 | . . . . . . . 1 . . Most Traps Carried 1 | . . 1 1 1 1 1 1 . . Machines | -11 -10 -10 -7 -7 -5 -5 -5 -5 -4 ---------- Run | Yrd Mat Sub Rec Scr Fac Upp Upp Zhi Pro Machines Disabled 5 | . . 3 . . 2 . . . . Max in Single Turn 3 | . . 3 . . 1 . . . . Machines Repaired . | . . . . . . . . . . Machines Dismantled . | . . . . . . . . . . Machines Sabotaged . | . . . . . . . . . . Overloaded Fab Kills . | . . . . . . . . . . Hacking | -11 -10 -10 -7 -7 -5 -5 -5 -5 -4 --------- Run | Yrd Mat Sub Rec Scr Fac Upp Upp Zhi Pro Machines Accessed 44 | . 5 . 15 12 3 . . 9 . Terminals 11 | . 3 . 6 . 2 . . . . Fabricators . | . . . . . . . . . . Repair Stations 1 | . 1 . . . . . . . . Recycling Units 9 | . 1 . 7 . 1 . . . . Scanalyzers . | . . . . . . . . . . Garrison Access . | . . . . . . . . . . Total Hacks 205 | . 13 . 60 75 9 . . 48 . Successful 183 | . 7 . 48 75 5 . . 48 . Failed 21 | . 5 . 12 . 4 . . . . Catastrophic 9 | . 1 . 6 . 2 . . . . Database Lockouts 1 | . 1 . . . . . . . . Manual 28 | . 5 . 17 . 6 . . . . Terminals 35 | . 9 . 18 . 8 . . . . Fabricators . | . . . . . . . . . . Repair Stations 3 | . 3 . . . . . . . . Recycling Units 19 | . 1 . 17 . 1 . . . . Scanalyzers . | . . . . . . . . . . Garrison Access . | . . . . . . . . . . Terminal Hacks 159 | . 4 . 29 75 3 . . 48 . Record 130 | . 1 . 24 69 . . . 36 . Part Schematic 7 | . . . 3 . . . . 4 . Robot Analysis 12 | . 2 . 1 5 . . . 4 . Prototype ID Bank 4 | . . . . . . . . 4 . Terminal Index 1 | . . . . . 1 . . . . Locate Traps 1 | . 1 . . . . . . . . Dispatch Records 1 | . . . . . 1 . . . . Maintenance Status 1 | . . . . . 1 . . . . Proto ID Catalog 1 | . . . . 1 . . . . . Release Object 1 | . . . 1 . . . . . . Fabricator Hacks . | . . . . . . . . . . Repair Station Hacks 2 | . 2 . . . . . . . . Scan Component 1 | . 1 . . . . . . . . Repair 1 | . 1 . . . . . . . . Recycling Unit Hacks 9 | . . . 9 . . . . . . Process 1 | . . . 1 . . . . . . Report Inventory 7 | . . . 7 . . . . . . Retrieve Components 1 | . . . 1 . . . . . . Scanalyzer . | . . . . . . . . . . Garrison Access Hacks . | . . . . . . . . . . Unauthorized Hacks 13 | . 1 . 10 . 2 . . . . Terminals 5 | . 1 . 3 . 1 . . . . Botnet 5 | . 1 . 3 . 1 . . . . Fabricators . | . . . . . . . . . . Repair Stations . | . . . . . . . . . . Recycling Units 8 | . . . 7 . 1 . . . . Tunnel 7 | . . . 7 . . . . . . Fedlink 1 | . . . . . 1 . . . . Scanalyzers . | . . . . . . . . . . Garrison Access . | . . . . . . . . . . Data Cores Recovered . | . . . . . . . . . . Used . | . . . . . . . . . . Hacking Detections 16 | . 4 . 11 . 1 . . . . Full Trace Events 3 | . 1 . 2 . . . . . . Feedback Events . | . . . . . . . . . . Feedback Blocked . | . . . . . . . . . . Robot Schematics Acquired . | . . . . . . . . . . Robots Built . | . . . . . . . . . . Authchips . | . . . . . . . . . . Time . | . . . . . . . . . . Total Robot Build Rating . | . . . . . . . . . . Part Schematics Acquired 7 | . . . 3 . . . . 4 . Parts Built . | . . . . . . . . . . Authchips . | . . . . . . . . . . Time . | . . . . . . . . . . Total Part Build Rating . | . . . . . . . . . . Part Studies Acquired . | . . . . . . . . . . Parts Repaired 1 | . 1 . . . . . . . . Time 26 | . 26 . . . . . . . . Parts Recycled . | . . . . . . . . . . Recycled Matter 27 | . . . 27 . . . . . . Retrieved Matter . | . . . . . . . . . . Retrieved Components 7 | . . . 7 . . . . . . Parts Scanalyzed . | . . . . . . . . . . Part Schematics Acquired . | . . . . . . . . . . Parts Damaged . | . . . . . . . . . . Bothacking | -11 -10 -10 -7 -7 -5 -5 -5 -5 -4 ------------ Run | Yrd Mat Sub Rec Scr Fac Upp Upp Zhi Pro Used RIF Installer . | . . . . . . . . . . Robots Hacked 2 | . . . . 2 . . . . . Non-combat . | . . . . . . . . . . Combat 2 | . . . . 2 . . . . . Robot Hacks Applied 3 | . . . . 3 . . . . . parse_system 3 | . . . . 3 . . . . . Relay Couplers Released . | . . . . . . . . . . Fabnet Peak Effective % . | . . . . . . . . . . Robots Rewired 1 | . . . . . . 1 . . . Allies Hacked . | . . . . . . . . . . Hacks Repelled . | . . . . . . . . . . Allies | -11 -10 -10 -7 -7 -5 -5 -5 -5 -4 -------- Run | Yrd Mat Sub Rec Scr Fac Upp Upp Zhi Pro Total Allies 1 | . . . . . . 1 . . . Largest Group 1 | . . . . . . 1 . . . Highest-Rated Group 49 | . . . . . . 49 . . . Highest-Rated Ally 49 | . . . . . . 49 . . . Total Orders . | . . . . . . . . . . Ally Attacks 3 | . . . . . . 3 . . . Total Damage 96 | . . . . . . 96 . . . Kills . | . . . . . . . . . . Allies Corrupted . | . . . . . . . . . . Allies Melted . | . . . . . . . . . . Intel | -11 -10 -10 -7 -7 -5 -5 -5 -5 -4 ------- Run | Yrd Mat Sub Rec Scr Fac Upp Upp Zhi Pro Active Infowar (turns) 4734 | 22 752 1074 . . 959 1742 105 . 80 Optics 69 | . . 69 . . . . . . . Sensors 1207 | . . . . . . 1207 . . . Seismic 3967 | 22 752 1005 . . 392 1618 105 . 73 Machine Analysis 2647 | . . . . . 957 1690 . . . Jamming 337 | . . . . . 337 . . . . ECM 7 | . . . . . . . . . 7 Robot Analysis Total 12 | . 2 . 1 5 . . . 4 . Derelict Logs Recovered 7 | . . . . 5 . 1 1 . . Drone Launches . | . . . . . . . . . . Drone Recoveries . | . . . . . . . . . . Exploration | -11 -10 -10 -7 -7 -5 -5 -5 -5 -4 ------------- Run | Yrd Mat Sub Rec Scr Fac Upp Upp Zhi Pro Turns Passed 11503 | 94 1323 1455 999 4254 962 1843 210 181 182 Spaces Moved 5570 | 60 480 645 499 2199 327 547 285 219 309 Core 807 | 1 . . . . . 256 180 214 156 Treads 329 | 2 . . 39 . . 288 . . . Legs . | . . . . . . . . . . Wheels 4171 | 57 480 645 460 2199 327 3 . . . Hover 175 | . . . . . . . 105 5 65 Flight 88 | . . . . . . . . . 88 Fastest Speed 35 | 50 95 150 150 175 155 50 50 50 35 Average Speed 178 | 101 159 174 182 190 217 322 53 50 47 Slowest Speed 1750 | 160 200 215 320 195 240 1750 60 200 60 Overloaded Moves . | . . . . . . . . . . Propulsion Burnouts . | . . . . . . . . . . Robots Hopped . | . . . . . . . . . . Potential Cave-ins 1 | . . . . . . . . . 1 Cave-ins Triggered . | . . . . . . . . . . Teleports 1 | . . . . . . . . 1 . Exploration Rate (%) 52 | 4 77 45 79 91 9 68 43 62 49 Regions Visited 9 Branch Regions 7 Pre-discovered Areas 13 | . . . 7 3 . . . 3 . Known Exits Taken . | . . . . . . . . . . Unknown Exits Taken 9 | 1 1 1 1 1 1 1 1 1 . Scrap Searched 13 | . . 3 . 5 . 1 1 . 3 Spaces Dug . | . . . . . . . . . . Terrain Destroyed 183 | . 10 78 . . 24 29 . . 42 Melee . | . . . . . . . . . . Projectile 8 | . . . . . 3 5 . . . AOE 175 | . 10 78 . . 21 24 . . 42 Terrain Rammed . | . . . . . . . . . . Walls Destroyed . | . . . . . . . . . . Machines Disabled . | . . . . . . . . . . Actions | -11 -10 -10 -7 -7 -5 -5 -5 -5 -4 --------- Run | Yrd Mat Sub Rec Scr Fac Upp Upp Zhi Pro Total 6717 | 79 950 853 566 2261 478 592 341 265 332 Wait 538 | . 376 41 25 . 51 . 45 . . Move 5561 | 59 479 644 498 2198 326 546 284 218 309 Hop . | . . . . . . . . . . Pick Up 102 | 8 21 23 6 21 14 2 . 5 2 Fast Attach 31 | 7 4 3 1 . 2 . 4 6 4 Attach 44 | . 2 9 . . 17 6 1 5 4 Detach 13 | . 2 1 . . 1 3 2 2 2 Swap 76 | . 8 43 3 6 15 . . 1 . Drop 71 | . 11 21 7 22 4 1 2 3 . Fire 231 | 5 47 43 26 10 47 20 . 22 11 Melee 29 | . . 25 . 4 . . . . . Ram 3 | . . . . . . . 2 1 . Kick . | . . . . . . . . . . Crush . | . . . . . . . . . . Escape Stasis . | . . . . . . . . . . Rewire 16 | . . . . . . 14 . 2 . Trap 1 | . . . . . . . 1 . . Miscellaneous 1 | . . . . . 1 . . . . Route ------- -11/Scrapyard -10/Materials (discovered 2 exits: [*Mat] / [*Sub]) -10/Subcaves (discovered 2 exits: [*Mat] / *Rec) -7/Recycling (discovered 2 exits: *Fac / *Scr) -7/Scraptown (discovered 2 exits: *Fac x2) -5/Factory (discovered 2 exits: Fac / [*Upp]) -5/Upper Caves -5/Upper Caves -5/Zhirov -4/Proximity Caves History --------- Turn | Location | Event 14 | -11/Scrapyard | Discovered new exit (range 14) 95 | -11/Scrapyard | Entered Materials 312 | -10/Materials | Build established: Mutant 826 | -10/Materials | Central database locked down 830 | -10/Materials | Discovered new exit (range 15) 1113 | -10/Materials | Repaired Med. Laser 1404 | -10/Materials | Discovered new exit (range 9) 1418 | -10/Materials | Entered Subcaves 1419 | -10/Subcaves | Approached by a straggling Scientist 1424 | -10/Subcaves | Ambushed by Subdwellers from Twisted Machinery 1537 | -10/Subcaves | Lost 4 parts (1p1u2w) 1564 | -10/Subcaves | Core integrity fell below 50% 1992 | -10/Subcaves | Build established: Scavenger-Mutant 2295 | -10/Subcaves | Shifting Twisted Machinery released Sub. Laser 2415 | -10/Subcaves | Shifting Twisted Machinery released Riot Gun 2509 | -10/Subcaves | Shifting Twisted Machinery released Mak. Light Armor Plating 2512 | -10/Subcaves | Discovered new exit (range 5) 2596 | -10/Subcaves | Core integrity fell below 20% 2612 | -10/Subcaves | Shifting Twisted Machinery released Battle Rifle 2729 | -10/Subcaves | Discovered new exit (range 14) 2752 | -10/Subcaves | Build established: Mutant 2830 | -10/Subcaves | Disturbed a concealed Subdweller 2873 | -10/Subcaves | Entered Recycling 2874 | -7/Recycling | Met a Zionite searching for Scraptown 3489 | -7/Recycling | Discovered new exit (range 16) 3816 | -7/Recycling | Scanned before Scraplab entrance 3841 | -7/Recycling | Entered Scraplab 3867 | -7/Recycling | Discovered new exit (range 3) 3872 | -7/Recycling | Entered Scraptown 4121 | -7/Scraptown | Visited Cyclists 4184 | -7/Scraptown | Visited Cave Peace 4233 | -7/Scraptown | Visited Shadow of the Wyrm 4308 | -7/Scraptown | Visited Assassins FH 4364 | -7/Scraptown | Scanned Subdweller tech in exchange for log data 4368 | -7/Scraptown | Learned Research security intel 4369 | -7/Scraptown | Learned Factory emergency access door positions 4371 | -7/Scraptown | Learned Factory security intel 4373 | -7/Scraptown | Learned location of 1 exit from Factory 4376 | -7/Scraptown | Learned location of 1 exit from Research 4838 | -7/Scraptown | Visited Awakened 4903 | -7/Scraptown | Visited Spacefarers 5182 | -7/Scraptown | Visited UFD Registry 5182 | -7/Scraptown | Registered with UFD as "Spikeslicer" 5509 | -7/Scraptown | Visited Scrap Suit Storage 5607 | -7/Scraptown | Visited Abandonware Association 5800 | -7/Scraptown | Learned abandonware demo "REPAIR.EXE" 5839 | -7/Scraptown | Visited Analyses Database 5948 | -7/Scraptown | Visited Research Penetration Think Tank 5989 | -7/Scraptown | Visited Science Testing Area 6093 | -7/Scraptown | Visited Curators Association 6143 | -7/Scraptown | Visited Infowarlord's Domain 6221 | -7/Scraptown | Visited Science Guys 6387 | -7/Scraptown | Entered Cyclist Reading Room 6395 | -7/Scraptown | Learned location of Zion (-6) 6496 | -7/Scraptown | Discovered new exit (range 13) 6579 | -7/Scraptown | Guru changed UFD alias to "Flexibank" 7642 | -7/Scraptown | Found Scrap Suit 7799 | -7/Scraptown | Found Exp. Sensor Array 8007 | -7/Scraptown | Met Optimus 8007 | -7/Scraptown | Accepted into 0bPrime 8118 | -7/Scraptown | Discovered new exit (range 5) 8126 | -7/Scraptown | Entered Factory 8126 | -5/Factory | Evolved 10 slots: Propulsion x2, Utility x7, Weapon x1 8127 | -5/Factory | Identified exit to Factory 8208 | -5/Factory | Loaded intel: 8 recycling unit locations 8428 | -5/Factory | Build established: Derelict-Tank 8605 | -5/Factory | Lost 3 parts (1p1n1w) 8845 | -5/Factory | Build established: Scavenger-Tank 8877 | -5/Factory | Lost 3 parts (1n1u1w) 8923 | -5/Factory | Discovered new exit (range 14) 8985 | -5/Factory | Lost 3 parts (2n1u) 9088 | -5/Factory | Entered Upper Caves 9152 | -5/Upper Caves | Lost 5 parts (1p1n1u2w) 9391 | -5/Upper Caves | Build established: Mutant 9987 | -5/Upper Caves | Learned Factory stockpile data 10757 | -5/Upper Caves | Attracted the attention of an 0b10 outpost 10778 | -5/Upper Caves | Released all parts (5) 10805 | -5/Upper Caves | Lost 6 parts (1n4u1w) 10918 | -5/Upper Caves | Discovered new exit (range 3) 10931 | -5/Upper Caves | Entered another Upper Caves area 10986 | -5/Upper Caves | Attracted the attention of an 0b10 checkpoint 10986 | -5/Upper Caves | Core integrity fell below 50% 11015 | -5/Upper Caves | Entered a destroyed Warlord outpost 11068 | -5/Upper Caves | Ambushed by wild Derelicts 11138 | -5/Upper Caves | Discovered new exit (range 7) 11141 | -5/Upper Caves | Learned Factory terminal intel 11141 | -5/Upper Caves | Entered Zhirov 11141 | -5/Zhirov | Discovered new exit (range 3) 11151 | -5/Zhirov | Met Zhirov 11167 | -5/Zhirov | Learned location of Quarantine (-2) 11167 | -5/Zhirov | Learned location of Testing (-3) 11167 | -5/Zhirov | Learned location of Command (-1) 11170 | -5/Zhirov | Zhirov requested help retrieving the SGEMP Prototype 11191 | -5/Zhirov | Found Alien Artifact 11192 | -5/Zhirov | Identified Integrated Reactor 11192 | -5/Zhirov | Installed Integrated Reactor, increased core energy generation (+10) 11199 | -5/Zhirov | Found Alien Artifact 11214 | -5/Zhirov | Identified Transdimensional Reconstructor 11214 | -5/Zhirov | Warped through subspace 11268 | -5/Zhirov | Attached CPS modules to C-55 Analyst. 11322 | -5/Zhirov | Entered Proximity Caves 11395 | -4/Proximity Caves | Attracted the attention of an 0b10 checkpoint 11449 | -4/Proximity Caves | Core integrity fell below 20% 11504 | -4/Proximity Caves | Destroyed by S-27 Virus with Autogun Last Messages --------------- 11437_ S-27 Virus destroyed. [Achievement: That Tickles] 11464_ Sub. Shrapnel Launcher destroyed. 11467_ Exp. Propulsion Shielding destroyed. 11467_ Antigrav System destroyed. 11467_ Critical hit (Burn: +50). 11477_ VTOL Module destroyed. 11488_ Penetrated by Slug. 11488_ Slug penetrates Wall. 11488_ Penetrated by Slug. 11492_ Acquired 54 matter. 11495_ Slug penetrates Wall. 11496_ Searching scrap... 11496_ Found Phase Gun. 11496_ Found Mak. Sensor Array. 11496_ Found Adv. ECM Suite. 11496_ Found 57 Matter. 11497_ Acquired Adv. ECM Suite. 11499_ Acquired Mak. Sensor Array. 11503_ System Guard destroyed. Map ----- +----------------------------------------------------+ | ?????????????????????????????????????????????????? | | ?????????????????????????????????????????????????? | | ?????????????????????????????????????????????????? | | ?????????????????????????????????????????????????? | | ?????????????????????????????????????????????????? | | ?????????????????????????????????????????????????? | | ?????????????????????????????????????????????????? | | ?????????????????????????????????????????????????? | | ?????????????????????????????????????????????????? | | ?????????????????????????????????????????????????? | | ?????????????????????????????????????????????????? | | ?????????????????????????????????????????????????? | | ?????????????????????????????????????????????????? | | ?????????????????????????????????????????????????? | | ?????????????????????????????????????????????????? | | ?????????????????????????????????????????????????? | | ?????????????????????????????????????????????????? | | ?????????????????????????????????????????????????? | | ?????????????????????????????????????????????????? | | ?????????????????????????????????????????????????? | | ??????????????????????????####???????????????????? | | ???##???????????????????## ##??????????????????? | | ??## ???????????????????# ##?????????????????? | | ??# ??########????????# ##????????????????? | | ??# ??? #???????## ##???????????????? | | #?# #??# ##?????## @ ##??????????????? | | #?# #?# ####### #??????????????? | | ### ## ## ## #?????????????? | | ## ## #### #?? ??????????? | | #???# ##%#??# ?????????? | | #???## ##[#?? #### ??????????? | | ##????# # #? #????## ??????????? | | ######## # ##### ss #??????## ??????????? | | ## ## # #??? s #??????????????????? | | # #??# ## #??????????????????? | | # ?? #?## s #??????????????????? | | ## ? #????# ## ??????????????????? | | ###### ?????? ##? ?????????????????? | | ### ##?????### %??????##??? ????????????????? | | #?## #????????##??????????????????????????????? | | ???# #????????????????????????????????????????? | | ???## #????????????????????????????????????????? | | ????# #????????????????????????????????????????? | | ???? #????????????????????????????????????????? | | ???? #????????????????????????????????????????? | | ??? ##????????????????????????????????????????? | | ???#####?????????????????????????????????????????? | | ?????????????????????????????????????????????????? | | ?????????????????????????????????????????????????? | | ?????????????????????????????????????????????????? | +----------------------------------------------------+ Best States ------------- Heat Dissipation 59 Coolant Potential 50 Energy Generation 28 Energy Capacity 160 Matter Stores 300 Matter Capacity 300 Sight Range 21 Robot Scan Range 20 Terrain Scan Density 10 ECM Strength 2 Jamming Range 14 Corruption Containment 8 Armor Coverage 550 Propulsion Shielding 90 Phase Shifting 5 Evasion (%) 63 Recoil Reduction 3 Defensive Hacking 14 Item Schematics ----------------- Hvy. Reflective Plating | -7/Recycling | Hacked Cmb. Gravmag System | -7/Recycling | Hacked Adv. Cooling System | -7/Recycling | Hacked Assault Drone Bay | -5/Zhirov | Free Exp. Heat Sink | -5/Zhirov | Free Exp. Optical Array | -5/Zhirov | Free Imp. Arc Thrower | -5/Zhirov | Free Robot Schematics ------------------ None Fabricated ------------ Nothing Repaired ---------- Med. Laser | 57% | -10/Materials Studied --------- None Alien Tech Used ----------------- Integrated Reactor Transdimensional Reconstructor Achievements -------------- Low-level Research That Tickles Challenges ------------ None Game ------ Seed FactoryStorageWings Manual? 0 Play Time 01:58:20 Cumulative 131.7 hours Start 2026.01.01 @ 19:14:34 End 2026.01.01 @ 22:39:59 Sessions 3 Manual Loads 0 Difficulty Rogue Special Mode None Game No. 56 Rogue 56 Adventurer 0 Explorer 0 Win Type - Total 5 Types 5/0/0/0/0/0/0/0/0/0 Lore% 46 Gallery% 49 Achievement% 38 Wizard Run 0 Options --------- Layout 0 ASCII 0 Keyboard 0 Movement Arrows Keybinds 0 Fullscreen 2 Font 18/Terminus Map View 76x50 Zoom Use 0% Tactical HUD 1 Map Filters NONE Filters NONE Steam 1 RUN: a2aca803-aac7-4712-a1ae-b0c2c3e2dee4